fUST/lending_fUST_20241227
["ID","MTS","AMOUNT","RATE_DAILY","PERIOD"]
[346810500,1735301883772,-1379.54,0.00011729,2]
[346810501,1735301883920,-672.13,0.00011731,2]
[346810502,1735301883948,-500.0,0.00011731,2]
[346810503,1735301883974,-1240.52,0.00011731,2]
[346810504,1735301884002,-500.0,0.00011925,2]
[346810505,1735301884027,-357.67530821,0.00011925,2]
[346810506,1735301884052,-292.26171032,0.00011925,2]
[346810507,1735301884080,-1573.08,0.00011999,2]
[346810508,1735301884106,-562.94,0.00011999,2]
[346810509,1735301884132,-500.0,0.00011999,2]
[346810510,1735301884156,-904.17,0.00012,2]
[346810511,1735301884181,-275.65487772,0.00012,2]
[346810512,1735301884208,-5195.75,0.00012,2]
[346810513,1735301884239,-500.0,0.00012,2]
[346810514,1735301884266,-500.0,0.00012,2]
[346810515,1735301884293,-933.16,0.00012002,2]
[346810516,1735301884319,-1379.54,0.00012003,2]
[346810517,1735301884344,-672.13,0.00012005,2]
[346810518,1735301884370,-500.0,0.00012005,2]
[346810519,1735301884394,-1240.52,0.00012005,2]
[346810520,1735301884419,-387.459,0.00012016,2]
[346810521,1735301884442,-217.4834891,0.00012082,2]
[346810522,1735301884466,-349.5361405,0.00012195,2]
[346810523,1735301884492,-1573.08,0.00012273,2]
[346810524,1735301884517,-562.94,0.00012273,2]
[346810525,1735301884543,-500.0,0.00012273,2]
[346810526,1735301884568,-5195.75,0.00012274,2]
[346810527,1735301884594,-500.0,0.00012274,2]
[346810528,1735301884619,-500.0,0.00012274,2]
[346810529,1735301884643,-933.16,0.00012276,2]
[346810530,1735301884668,-1379.54,0.00012277,2]
[346810531,1735301884693,-672.13,0.00012279,2]
[346810532,1735301884718,-198.29813302,0.00012279,2]
[346810533,1735301884743,-1240.52,0.00012279,2]
[346810534,1735301884766,-784.12,0.000125,2]
[346810535,1735301884791,-1573.08,0.00012547,2]
[346810536,1735301884816,-562.94,0.00012547,2]
[346810537,1735301884841,-500.0,0.00012547,2]
[346810538,1735301884867,-5195.75,0.00012548,2]
[346810539,1735301884893,-500.0,0.00012548,2]
[346810540,1735301884917,-500.0,0.00012548,2]
[346810541,1735301884943,-933.16,0.0001255,2]
[346810542,1735301884970,-1379.54,0.00012551,2]
[346810543,1735301884996,-672.13,0.00012553,2]
[346810544,1735301885021,-1240.52,0.00012553,2]
[346810545,1735301885045,-164.99726934,0.00012603,2]
[346810546,1735301885069,-164.99726934,0.0001274,2]
[346810547,1735301885093,-349.5361405,0.00012763,2]
[346810548,1735301885118,-197.9967232,0.00012767,2]
[346810549,1735301885142,-197.99672321,0.00012767,2]
[346810550,1735301885168,-1573.08,0.00012821,2]
[346810551,1735301885193,-562.94,0.00012821,2]
[346810552,1735301885220,-500.0,0.00012821,2]
[346810553,1735301885245,-5195.75,0.00012822,2]
[346810554,1735301885271,-500.0,0.00012822,2]
[346810555,1735301885299,-500.0,0.00012822,2]
[346810556,1735301885326,-933.16,0.00012824,2]
[346810557,1735301885351,-1379.54,0.00012825,2]
[346810558,1735301885376,-672.13,0.00012827,2]
[346810559,1735301885402,-1240.52,0.00012827,2]
[346810560,1735301885425,-164.99726934,0.00012877,2]
[346810561,1735301885449,-197.9967232,0.00012959,2]
[346810562,1735301885472,-197.99672321,0.00012959,2]
[346810563,1735301885497,-612.464,0.0001297,2]
[346810564,1735301885520,-8950.80017021,0.00012981,2]
[346810565,1735301885544,-164.99726934,0.00013014,2]
[346810566,1735301885568,-352.2050668,0.00013041,2]
[346810567,1735301885592,-500.0,0.00013073,2]
[346810568,1735301885615,-500.0,0.00013073,2]
[346810569,1735301885640,-1573.08,0.00013095,2]
[346810570,1735301885666,-562.94,0.00013095,2]
[346810571,1735301885691,-500.0,0.00013095,2]
[346810572,1735301885719,-5195.75,0.00013096,2]
[346810573,1735301885745,-500.0,0.00013096,2]
[346810574,1735301885769,-500.0,0.00013096,2]
[346810575,1735301885792,-151.0,0.00013097,2]
[346810576,1735301885816,-151.0,0.00013097,2]
[346810577,1735301885839,-151.0,0.00013097,2]
[346810578,1735301885863,-151.0,0.00013097,2]
[346810579,1735301885885,-151.0,0.00013097,2]
[346810580,1735301885910,-933.16,0.00013098,2]
[346810581,1735301885934,-1379.54,0.00013099,2]
[346810582,1735301885957,-142.14175336,0.00013101,2]
[346810584,1735301929641,-500.0,9.535e-05,2]
[346810585,1735301929665,-500.0,9.535e-05,2]
[346810586,1735301929688,-500.0,9.535e-05,2]
[346810587,1735301929710,-500.0,9.535e-05,2]
[346810588,1735301929733,-500.0,9.535e-05,2]
[346810589,1735301929755,-500.0,9.721e-05,2]
[346810590,1735301929777,-500.0,9.808e-05,2]
[346810591,1735301929798,-500.0,9.808e-05,2]
[346810592,1735301929820,-500.0,9.808e-05,2]
[346810593,1735301929842,-500.0,9.808e-05,2]
[346810594,1735301929863,-503.57947919,9.808e-05,2]
[346810595,1735301929886,-271.07017044,9.808e-05,2]
[346810596,1735301929908,-500.0,9.808e-05,2]
[346810597,1735301929929,-588.93,9.808e-05,2]
[346810598,1735301929951,-487.77554923,9.808e-05,2]
[346810599,1735301929973,-500.0,9.808e-05,2]
[346810600,1735301929995,-500.0,9.808e-05,2]
[346810601,1735301930017,-500.0,9.809e-05,2]
[346810602,1735301930042,-746.1,9.994e-05,2]
[346810603,1735301930064,-500.0,0.00010082,2]
[346810604,1735301930087,-500.0,0.00010082,2]
[346810605,1735301930110,-500.0,0.00010082,2]
[346810606,1735301930132,-500.0,0.00010082,2]
[346810607,1735301930155,-500.0,0.00010082,2]
[346810608,1735301930176,-501.52316425,0.00010082,2]
[346810609,1735301930197,-604.62222817,0.00010082,2]
[346810610,1735301930219,-500.0,0.00010082,2]
[346810611,1735301930245,-500.0,0.00010082,2]
[346810612,1735301930268,-500.0,0.00010082,2]
[346810613,1735301930292,-500.0,0.00010082,2]
[346810614,1735301930314,-500.0,0.00010082,2]
[346810615,1735301930335,-500.0,0.00010082,2]
[346810616,1735301930356,-500.0,0.00010082,2]
[346810617,1735301930378,-500.0,0.00010082,2]
[346810618,1735301930401,-300.0,0.00010355,2]
[346810619,1735301930425,-500.0,0.00010355,2]
[346810620,1735301930450,-500.0,0.00010355,2]
[346810621,1735301930473,-500.0,0.00010355,2]
[346810622,1735301930496,-500.0,0.00010355,2]
[346810623,1735301930519,-500.0,0.00010356,2]
[346810624,1735301930541,-500.0,0.00010356,2]
[346810625,1735301930563,-500.0,0.00010356,2]
[346810626,1735301930585,-500.0,0.00010356,2]
[346810627,1735301930607,-500.0,0.00010356,2]
[346810628,1735301930629,-500.0,0.00010629,2]
[346810629,1735301930652,-500.0,0.00010629,2]
[346810630,1735301930675,-500.0,0.00010629,2]
[346810631,1735301930698,-500.0,0.00010629,2]
[346810632,1735301930720,-610.48691325,0.0001087,2]
[346810633,1735301930741,-500.0,0.0001087,2]
[346810634,1735301930771,-500.0,0.0001087,2]
[346810635,1735301930799,-283.48671577,0.0001087,2]
[346810636,1735301930821,-500.0,0.0001087,2]
[346810637,1735301930845,-500.0,0.00010903,2]
[346810638,1735301930870,-500.0,0.00010903,2]
[346810639,1735301930894,-272.6056652,0.00012969,2]
[346810640,1735301930917,-151.0,0.00013096,2]
[346810641,1735301930939,-231.94289072,0.000131,2]
[346810642,1735301930964,-529.98824664,0.00013101,2]
[346810643,1735301930988,-1240.52,0.00013101,2]
[346810644,1735301931011,-164.99726934,0.00013151,2]
[346810645,1735301931035,-164.99726934,0.00013288,2]
[346810646,1735301931059,-349.5361405,0.00013332,2]
[346810647,1735301931081,-245.45734908,0.00013369,2]
[346810648,1735301931105,-300.0,0.00013369,2]
[346810649,1735301931129,-248.01688237,0.00013369,2]
[346810650,1735301931153,-1573.08,0.00013369,2]
[346810651,1735301931178,-562.94,0.00013369,2]
[346810652,1735301931203,-232.70795067,0.00013369,2]
[346810653,1735301931227,-492.317,0.00013369,2]
[346810654,1735301931250,-228.05615978,0.00013369,2]
[346810655,1735301931273,-15648.73874581,0.0001337,2]
[346810656,1735301931299,-59965.52421025,0.0001337,2]
[346810657,1735302031385,1114.93303945,0.00025,120]
[346810658,1735302353950,24900.0,8.682e-05,2]
[346810659,1735302435099,-825.537893,9.34e-05,2]
[346810660,1735302435121,-267.87837942,9.44e-05,2]
[346810662,1735302520623,499.999999,0.00020327,120]
[346810935,1735302634343,-300.0,9.533e-05,2]
[346810937,1735302634353,-500.0,9.534e-05,2]
[346810939,1735302634363,-500.0,9.534e-05,2]
[346810941,1735302634373,-500.0,9.534e-05,2]
[346810943,1735302634383,-500.0,9.534e-05,2]
[346810945,1735302634393,-500.0,9.534e-05,2]
[346810947,1735302634403,-500.0,9.534e-05,2]
[346810949,1735302634413,-500.0,9.534e-05,2]
[346810951,1735302634423,-500.0,9.535e-05,2]
[346810953,1735302634433,-499.03558,9.535e-05,2]
[346810956,1735302634446,-0.96442,9.535e-05,2]
[346810958,1735302634455,-500.0,9.535e-05,2]
[346810960,1735302634464,-500.0,9.535e-05,2]
[346810962,1735302634474,-500.0,9.535e-05,2]
[346810964,1735302634484,-27.61958604,9.535e-05,2]
[346810966,1735302634496,-461.37077153,9.535e-05,2]
[346810968,1735302634507,-11.00964243,9.535e-05,2]
[346810970,1735302634516,-500.0,9.535e-05,2]
[346810972,1735302634526,-500.0,9.535e-05,2]
[346810974,1735302634536,-501.49091669,9.535e-05,2]
[346810976,1735302634545,-500.0,9.535e-05,2]
[346810978,1735302634554,-500.0,9.535e-05,2]
[346810980,1735302634564,-500.0,9.535e-05,2]
[346810981,1735302634574,-500.0,9.535e-05,2]
[346810983,1735302634583,-500.0,9.535e-05,2]
[346810985,1735302634593,-500.0,9.535e-05,2]
[346810987,1735302634603,-501.27621066,9.535e-05,2]
[346810989,1735302634612,-500.0,9.535e-05,2]
[346810991,1735302634623,-500.0,9.535e-05,2]
[346810993,1735302634633,-500.0,9.535e-05,2]
[346810995,1735302634642,-500.0,9.535e-05,2]
[346810997,1735302634652,-500.0,9.535e-05,2]
[346810998,1735302634661,-500.0,9.535e-05,2]
[346810999,1735302634671,-575.43451119,9.535e-05,2]
[346811001,1735302634680,-500.0,9.535e-05,2]
[346811003,1735302634690,-500.0,9.535e-05,2]
[346811005,1735302634699,-500.0,9.535e-05,2]
[346811007,1735302634709,-500.0,9.535e-05,2]
[346811009,1735302634718,-341.85704421,9.535e-05,2]
[346811012,1735302634737,-158.14295579,9.535e-05,2]
[346811014,1735302634746,-500.0,9.535e-05,2]
[346811016,1735302634755,-506.78221807,9.535e-05,2]
[346811018,1735302634765,-500.95572852,9.535e-05,2]
[346811020,1735302634775,-500.0,9.535e-05,2]
[346811022,1735302634785,-267.14266445,9.535e-05,2]
[346811024,1735302634797,-500.0,9.535e-05,2]
[346811026,1735302634807,-500.7535264,9.535e-05,2]
[346811028,1735302634816,-500.71598307,9.535e-05,2]
[346811030,1735302634827,-500.0,9.535e-05,2]
[346811032,1735302634836,-502.74411992,9.535e-05,2]
[346811034,1735302634846,-500.0,9.535e-05,2]
[346811036,1735302634855,-500.0,9.535e-05,2]
[346811038,1735302634866,-500.0,9.535e-05,2]
[346811040,1735302634876,-500.0,9.535e-05,2]
[346811042,1735302634884,-500.0,9.535e-05,2]
[346811044,1735302634894,-500.0,9.535e-05,2]
[346811046,1735302634903,-500.0,9.535e-05,2]
[346811048,1735302634914,-500.0,9.535e-05,2]
[346811050,1735302634923,-500.0,9.535e-05,2]
[346811052,1735302634932,-545.32,9.535e-05,2]
[346811054,1735302634941,-500.0,9.535e-05,2]
[346811056,1735302634951,-500.0,9.535e-05,2]
[346811058,1735302634961,-500.0,9.535e-05,2]
[346811060,1735302634970,-500.0,9.535e-05,2]
[346811062,1735302634979,-500.0,9.536e-05,2]
[346811064,1735302634988,-715.02,9.536e-05,2]
[346811066,1735302634998,-500.0,9.539e-05,2]
[346811068,1735302635007,-500.0,9.539e-05,2]
[346811070,1735302635016,-500.0,9.539e-05,2]
[346811071,1735302635026,-1097.85,9.539e-05,2]
[346811072,1735302635035,-500.0,9.721e-05,2]
[346811073,1735302635045,-500.0,9.721e-05,2]
[346811074,1735302635055,-500.0,9.721e-05,2]
[346811075,1735302635064,-500.0,9.721e-05,2]
[346811076,1735302635074,-500.0,9.807e-05,2]
[346811077,1735302635083,-500.0,9.807e-05,2]
[346811078,1735302635093,-500.0,9.807e-05,2]
[346811079,1735302635103,-500.0,9.807e-05,2]
[346811080,1735302635112,-500.0,9.807e-05,2]
[346811081,1735302635123,-500.0,9.807e-05,2]
[346811082,1735302635132,-500.0,9.807e-05,2]
[346811083,1735302635143,-500.0,9.807e-05,2]
[346811084,1735302635152,-500.0,9.807e-05,2]
[346811085,1735302635161,-500.0,9.807e-05,2]
[346811086,1735302635171,-500.0,9.807e-05,2]
[346811087,1735302635180,-500.0,9.807e-05,2]
[346811088,1735302635190,-500.0,9.807e-05,2]
[346811089,1735302635199,-500.0,9.807e-05,2]
[346811090,1735302635208,-500.0,9.808e-05,2]
[346811091,1735302635220,-500.0,9.808e-05,2]
[346811092,1735302635230,-500.0,9.808e-05,2]
[346811093,1735302635239,-500.0,9.808e-05,2]
[346811094,1735302635248,-514.11418969,9.808e-05,2]
[346811095,1735302635257,-570.58915613,9.808e-05,2]
[346811096,1735302635266,-500.0,9.808e-05,2]
[346811097,1735302635276,-540.46,9.808e-05,2]
[346811098,1735302635285,-500.0,9.808e-05,2]
[346811099,1735302635295,-500.0,9.808e-05,2]
[346811100,1735302635304,-500.0,9.808e-05,2]
[346811101,1735302635313,-500.0,9.808e-05,2]
[346811102,1735302635322,-500.0,9.808e-05,2]
[346811103,1735302635331,-500.0,9.808e-05,2]
[346811104,1735302635340,-500.0,9.808e-05,2]
[346811105,1735302635349,-500.0,9.808e-05,2]
[346811106,1735302635358,-500.0,9.808e-05,2]
[346811107,1735302635457,-500.0,9.808e-05,2]
[346811108,1735302635467,-500.0,9.808e-05,2]
[346811109,1735302635481,-500.0,9.808e-05,2]
[346811110,1735302635492,-500.0,9.808e-05,2]
[346811111,1735302635501,-500.0,9.808e-05,2]
[346811112,1735302635511,-500.0,9.808e-05,2]
[346811113,1735302635520,-500.0,9.808e-05,2]
[346811114,1735302635529,-502.61,9.808e-05,2]
[346811115,1735302635538,-519.9,9.808e-05,2]
[346811116,1735302635548,-500.0,9.808e-05,2]
[346811117,1735302635557,-500.0,9.808e-05,2]
[346811118,1735302635566,-500.0,9.808e-05,2]
[346811119,1735302635575,-500.0,9.808e-05,2]
[346811120,1735302635585,-500.0,9.808e-05,2]
[346811121,1735302635594,-500.0,9.808e-05,2]
[346811122,1735302635603,-500.0,9.808e-05,2]
[346811123,1735302635612,-522.0458533,9.808e-05,2]
[346811124,1735302635623,-500.0,9.808e-05,2]
[346811125,1735302635631,-500.0,9.808e-05,2]
[346811126,1735302635641,-500.0,9.808e-05,2]
[346811127,1735302635650,-500.0,9.808e-05,2]
[346811128,1735302635660,-500.0,9.808e-05,2]
[346811129,1735302635669,-500.0,9.808e-05,2]
[346811130,1735302635678,-500.0,9.808e-05,2]
[346811131,1735302635687,-500.0,9.808e-05,2]
[346811132,1735302635696,-500.0,9.808e-05,2]
[346811133,1735302635706,-500.0,9.808e-05,2]
[346811134,1735302635715,-500.0,9.808e-05,2]
[346811135,1735302635724,-642.3,9.808e-05,2]
[346811136,1735302635733,-500.0,9.808e-05,2]
[346811137,1735302635743,-500.0,9.808e-05,2]
[346811138,1735302635752,-500.0,9.808e-05,2]
[346811139,1735302635761,-500.0,9.808e-05,2]
[346811140,1735302635770,-500.0,9.808e-05,2]
[346811141,1735302635780,-500.0,9.808e-05,2]
[346811142,1735302635791,-500.0,9.808e-05,2]
[346811143,1735302635800,-500.0,9.808e-05,2]
[346811144,1735302635809,-500.0,9.808e-05,2]
[346811145,1735302635819,-504.92929516,9.808e-05,2]
[346811146,1735302635829,-500.0,9.808e-05,2]
[346811147,1735302635839,-500.0,9.808e-05,2]
[346811148,1735302635848,-500.0,9.808e-05,2]
[346811149,1735302635859,-550.94,9.808e-05,2]
[346811150,1735302635869,-500.0,9.808e-05,2]
[346811151,1735302635878,-388.91,9.808e-05,2]
[346811152,1735302635888,-500.0,9.808e-05,2]
[346811153,1735302635897,-500.0,9.808e-05,2]
[346811154,1735302635906,-500.86058448,9.808e-05,2]
[346811155,1735302635916,-500.0,9.808e-05,2]
[346811156,1735302635926,-500.0,9.808e-05,2]
[346811157,1735302635935,-500.0,9.808e-05,2]
[346811158,1735302635944,-501.25993747,9.808e-05,2]
[346811159,1735302635955,-500.0,9.808e-05,2]
[346811160,1735302635964,-500.0,9.808e-05,2]
[346811161,1735302635973,-500.0,9.808e-05,2]
[346811162,1735302635982,-500.0,9.808e-05,2]
[346811163,1735302635991,-530.82,9.808e-05,2]
[346811164,1735302636001,-500.0,9.808e-05,2]
[346811165,1735302636010,-500.0,9.808e-05,2]
[346811166,1735302636019,-500.0,9.808e-05,2]
[346811167,1735302636029,-500.0,9.808e-05,2]
[346811168,1735302636038,-500.0,9.808e-05,2]
[346811169,1735302636047,-500.0,9.808e-05,2]
[346811170,1735302636058,-500.0,9.808e-05,2]
[346811171,1735302636067,-500.0,9.808e-05,2]
[346811172,1735302636076,-500.0,9.808e-05,2]
[346811173,1735302636086,-500.0,9.808e-05,2]
[346811174,1735302636095,-500.0,9.808e-05,2]
[346811175,1735302636104,-505.04148532,9.808e-05,2]
[346811176,1735302636113,-500.77914922,9.808e-05,2]
[346811177,1735302636124,-500.0,9.808e-05,2]
[346811178,1735302636134,-250.07513285,9.809e-05,2]
[346811179,1735302636144,-500.0,9.809e-05,2]
[346811180,1735302636153,-280.45,9.809e-05,2]
[346811181,1735302636163,-500.0,9.809e-05,2]
[346811182,1735302636172,-363.83,9.809e-05,2]
[346811183,1735302636182,-500.0,9.809e-05,2]
[346811184,1735302636191,-500.0,9.809e-05,2]
[346811185,1735302636200,-500.0,9.809e-05,2]
[346811186,1735302636210,-715.02,9.81e-05,2]
[346811187,1735302636219,-541.09,9.813e-05,2]
[346811188,1735302636228,-500.0,9.813e-05,2]
[346811189,1735302636238,-1097.85,9.813e-05,2]
[346811190,1735302636247,-174.76807025,9.904e-05,2]
[346811191,1735302636257,-500.0,9.995e-05,2]
[346811192,1735302636266,-500.0,9.995e-05,2]
[346811193,1735302636275,-500.0,9.999e-05,2]
[346811194,1735302636284,-171.82014436,9.999e-05,2]
[346811195,1735302636294,-378.92682912,9.999e-05,2]
[346811196,1735302636303,-500.0,9.999e-05,2]
[346811197,1735302636312,-500.0,9.999e-05,2]
[346811198,1735302636322,-53525.83664393,0.0001,2]
[346811199,1735302636335,-9685.2182733,0.0001,2]
[346811206,1735302637878,-300.0,9.438e-05,2]
[346811207,1735302637888,-500.0,9.534e-05,2]
[346811208,1735302637897,-500.0,9.808e-05,2]
[346811209,1735302637907,-4242.19441804,0.0001,2]
[346811210,1735302637919,-301.79,0.0001,2]
[346811211,1735302637931,-420.39310185,0.0001,2]
[346811213,1735302637942,-25429.00441415,0.0001,2]
[346811214,1735302637953,-43932.54341337,0.0001,2]
[346811215,1735302637962,-179.23298022,0.00010003,2]
[346811217,1735302637971,-500.0,0.00010003,2]
[346811219,1735302637981,-74.41007471,0.00010044,2]
[346811222,1735302637995,-425.58992529,0.00010044,2]
[346811223,1735302638005,-36.07760711,0.00010044,2]
[346811236,1735302642419,-507.22991826,9.534e-05,2]
[346811239,1735302642428,-500.0,9.534e-05,2]
[346811242,1735302642436,-342.87269108,0.00010044,2]
[346811245,1735302642445,-500.0,0.00010044,2]
[346811247,1735302642454,-500.0,0.00010044,2]
[346811249,1735302642464,-500.0,0.00010054,2]
[346811250,1735302642473,-500.2161504,0.00010054,2]
[346811251,1735302642483,-500.0,0.00010054,2]
[346811252,1735302642492,-500.0,0.00010081,2]
[346811253,1735302642501,-474.4315081,0.00010081,2]
[346811254,1735302642989,-500.0,9.808e-05,2]
[346811255,1735302642999,-25.5684919,0.00010081,2]
[346811256,1735302643008,-500.0,0.00010081,2]
[346811257,1735302643018,-646.1,0.00010081,2]
[346811258,1735302643027,-500.0,0.00010081,2]
[346811259,1735302643036,-500.0,0.00010081,2]
[346811260,1735302643046,-500.0,0.00010081,2]
[346811261,1735302643055,-500.0,0.00010081,2]
[346811262,1735302643064,-500.0,0.00010081,2]
[346811263,1735302643073,-418.87153155,0.00010082,2]
[346811287,1735302645428,1244.53,0.00023,120]
[346811306,1735302645924,-500.0,9.808e-05,2]
[346811308,1735302645942,-500.0,0.00010082,2]
[346811310,1735302645951,-500.0,0.00010082,2]
[346811311,1735302645962,-500.0,0.00010082,2]
[346811312,1735302645971,-500.0,0.00010082,2]
[346811313,1735302645981,-150.94010433,0.00010082,2]
[346811314,1735302645990,-500.0,0.00010082,2]
[346811315,1735302645999,-500.0,0.00010082,2]
[346811316,1735302646008,-500.0,0.00010082,2]
[346811317,1735302646018,-500.0,0.00010082,2]
[346811318,1735302646027,-649.0533309,0.00010082,2]
[346811319,1735302646137,-251.41832446,0.00010082,2]
[346812776,1735302831556,163.6746467,8.952e-05,2]
[346812778,1735302966594,1396.6439343,8.899e-05,2]
[346812779,1735303265482,9795.1785555,8.74e-05,2]
[346812780,1735303519770,-227.0,9.251e-05,2]
[346812781,1735303519793,-300.0,9.532e-05,2]
[346812782,1735303519815,-500.0,9.533e-05,2]
[346812783,1735303519838,-500.0,9.533e-05,2]
[346812784,1735303519858,-500.0,9.533e-05,2]
[346812785,1735303519880,-500.0,9.533e-05,2]
[346812786,1735303519902,-500.0,9.533e-05,2]
[346812787,1735303519924,-500.0,9.533e-05,2]
[346812788,1735303519948,-500.0,9.533e-05,2]
[346812789,1735303519969,-500.0,9.533e-05,2]
[346812790,1735303519992,-500.0,9.533e-05,2]
[346812791,1735303520015,-500.0,9.533e-05,2]
[346812792,1735303520039,-500.0,9.533e-05,2]
[346812793,1735303520064,-594.74,9.533e-05,2]
[346812794,1735303520089,-500.0,9.533e-05,2]
[346812795,1735303520112,-500.0,9.533e-05,2]
[346812796,1735303520137,-500.0,9.533e-05,2]
[346812797,1735303520158,-194.51079241,9.533e-05,2]
[346812798,1735303520181,-1550.38,9.533e-05,2]
[346812799,1735303520204,-521.75,9.533e-05,2]
[346812800,1735303520226,-500.0,9.533e-05,2]
[346812801,1735303520248,-500.0,9.533e-05,2]
[346812802,1735303520270,-500.0,9.533e-05,2]
[346812803,1735303520295,-500.0,9.533e-05,2]
[346812804,1735303520318,-500.0,9.533e-05,2]
[346812805,1735303520341,-385.48397775,9.533e-05,2]
[346812806,1735303520366,-413.15183951,9.533e-05,2]
[346812807,1735303520387,-395.34391471,9.534e-05,2]
[346812808,1735303520408,-558.65099374,9.534e-05,2]
[346812809,1735303520429,-500.0,9.534e-05,2]
[346812810,1735303520452,-500.0,9.534e-05,2]
[346812811,1735303520473,-500.0,9.534e-05,2]
[346812812,1735303520494,-500.0,9.534e-05,2]
[346812813,1735303520514,-500.0,9.534e-05,2]
[346812814,1735303520536,-500.0,9.534e-05,2]
[346812815,1735303520558,-500.0,9.534e-05,2]
[346812816,1735303520579,-500.0,9.534e-05,2]
[346812817,1735303520600,-500.0,9.534e-05,2]
[346812818,1735303520621,-500.0,9.534e-05,2]
[346812819,1735303520642,-500.0,9.534e-05,2]
[346812820,1735303520664,-500.0,9.534e-05,2]
[346812821,1735303520685,-500.0,9.534e-05,2]
[346812822,1735303520708,-500.0,9.534e-05,2]
[346812823,1735303520728,-248.58167554,9.534e-05,2]
[346812824,1735303520749,-462.38914694,9.534e-05,2]
[346812825,1735303520770,-200.37028954,9.534e-05,2]
[346812826,1735303520792,-500.0,9.534e-05,2]
[346812827,1735303520813,-500.0,9.534e-05,2]
[346812828,1735303520834,-500.0,9.534e-05,2]
[346812829,1735303520855,-500.0,9.534e-05,2]
[346812830,1735303520875,-507.05788396,9.534e-05,2]
[346812831,1735303520896,-500.0,9.534e-05,2]
[346812832,1735303520916,-500.0,9.534e-05,2]
[346812833,1735303520937,-374.70637749,9.534e-05,2]
[346812834,1735303520958,-500.0,9.534e-05,2]
[346812835,1735303520981,-500.0,9.534e-05,2]
[346812836,1735303521004,-500.0,9.534e-05,2]
[346812837,1735303521027,-500.0,9.534e-05,2]
[346812838,1735303521049,-517.1101667,9.534e-05,2]
[346812839,1735303521071,-500.0,9.534e-05,2]
[346812840,1735303521093,-500.0,9.534e-05,2]
[346812841,1735303521116,-500.0,9.534e-05,2]
[346812842,1735303521139,-296.29698654,9.534e-05,2]
[346812843,1735303521161,-500.0,9.534e-05,2]
[346812844,1735303521184,-500.0,9.534e-05,2]
[346812845,1735303521206,-500.0,9.534e-05,2]
[346812846,1735303521228,-501.28367717,9.534e-05,2]
[346812847,1735303521248,-500.0,9.534e-05,2]
[346812848,1735303521270,-500.0,9.534e-05,2]
[346812849,1735303521291,-500.0,9.534e-05,2]
[346812850,1735303521312,-500.0,9.534e-05,2]
[346812851,1735303521335,-237.18268341,9.534e-05,2]
[346812852,1735303521357,-500.0,9.534e-05,2]
[346812853,1735303521378,-500.0,9.534e-05,2]
[346812854,1735303521402,-500.0,9.534e-05,2]
[346812855,1735303521426,-506.02651724,9.534e-05,2]
[346812856,1735303521449,-534.66558876,9.534e-05,2]
[346812857,1735303521471,-500.0,9.534e-05,2]
[346812858,1735303521492,-500.0,9.534e-05,2]
[346812859,1735303521514,-500.0,9.534e-05,2]
[346812860,1735303521537,-500.0,9.534e-05,2]
[346812861,1735303521558,-500.0,9.534e-05,2]
[346812862,1735303521580,-500.0,9.534e-05,2]
[346812863,1735303521601,-500.0,9.534e-05,2]
[346812864,1735303521623,-500.0,9.534e-05,2]
[346812865,1735303521644,-500.0,9.534e-05,2]
[346812866,1735303521665,-500.0,9.534e-05,2]
[346812867,1735303521687,-500.0,9.534e-05,2]
[346812868,1735303521712,-600.55726188,9.534e-05,2]
[346812869,1735303521733,-500.0,9.534e-05,2]
[346812870,1735303521755,-500.0,9.534e-05,2]
[346812871,1735303521776,-500.0,9.534e-05,2]